bitfinex/quotes_ETHUSD_20220106
["timestamp","ask_amount","ask_price","bid_price","bid_amount"]
[1641469930828,0.00170527,3344.0,3342.6,0.00625266]
[1641469931028,0.43,3344.2,3343.3,2.11545446]
[1641469931029,0.00113685,3343.9,3343.3,2.11545446]
[1641469931327,0.0022737,3344.1,3343.4,0.00170527]
[1641469931777,1.31046279,3343.9,3343.4,0.00170527]
[1641469931971,1.61046279,3343.9,3343.4,0.00170527]
[1641469932872,0.3,3343.9,3343.4,0.00170527]
[1641469933071,1.04964527,3344.0,3343.4,0.00170527]
[1641469933271,0.00170527,3344.0,3343.4,0.00170527]
[1641469933472,0.00113685,3343.9,3343.5,1.21861866]
[1641469933672,1.31046279,3343.8,3343.5,1.21861866]
[1641469934472,0.00170527,3344.0,3343.5,1.21861866]
[1641469934473,1.31216806,3344.0,3343.5,1.21861866]
[1641469934773,1.31216806,3344.0,3343.4,0.00170527]
[1641469934973,0.00113685,3343.9,3343.4,0.00170527]
[1641469935638,0.00113685,3343.9,3343.4,1.28487565]
[1641469936037,0.00113685,3343.9,3343.5,0.00113684]
[1641469936038,1.31159964,3343.9,3343.5,0.00113684]
[1641469937239,1.31159964,3343.9,3343.5,3.52386058]
[1641469937440,1.31159964,3343.9,3343.5,4.27157058]
[1641469937639,0.00113685,3343.9,3343.6,1.0]
[1641469937839,0.00113685,3343.9,3343.6,1.7222]
[1641469938440,0.00113685,3343.9,3343.6,2.21736]
[1641469938642,0.00113685,3343.9,3343.7,0.74753]
[1641469939040,3.57225789,3344.6,3343.9,27.29212199]
[1641469939287,3.57225789,3344.6,3344.0,1.165742]
[1641469939479,0.00341054,3344.5,3344.1,0.7474877]
[1641469939876,0.00284212,3344.4,3344.2,0.74749]
[1641469940080,0.00284212,3344.4,3344.2,1.74749]
[1641469940081,0.01446265,3344.4,3344.2,1.74749]
[1641469940278,0.00227369,3344.3,3344.2,1.74749]
[1641469940581,0.00227369,3344.3,3344.2,0.74749]
[1641469941379,0.00227369,3344.3,3344.2,7.2911949]
[1641469941581,0.00227369,3344.3,3344.2,8.2911949]
[1641469941779,0.00227369,3344.3,3344.2,2.7911949]
[1641469943323,0.00227369,3344.3,3344.2,2.0437049]
[1641469943524,0.00227369,3344.3,3344.1,0.74751]
[1641469943726,0.00227369,3344.3,3343.9,0.13819997]
[1641469943925,0.00170527,3344.2,3343.6,3.3073]
[1641469944324,0.00113685,3344.1,3343.7,0.00113684]
[1641469944734,1.49855977,3344.3,3343.7,0.00113684]
[1641469944925,1.49855977,3344.3,3343.6,0.00170527]
[1641469945125,0.00170527,3344.2,3343.6,0.00170527]
[1641469945326,0.01332666,3344.2,3343.6,0.00170527]
[1641469945525,1.98382433,3343.7,3343.6,0.00170527]
[1641469945726,0.00113685,3344.1,3343.4,0.00284212]
[1641469945925,0.3,3343.7,3343.4,0.00284212]
[1641469946125,0.00113685,3344.1,3343.4,0.00284212]
[1641469946779,1.62245634,3344.1,3343.4,0.00284212]
[1641469946974,0.3,3344.0,3343.4,0.00284212]
[1641469948176,1.1974948,3343.9,3343.4,0.00284212]
[1641469950179,1.4974948,3343.9,3343.4,0.00284212]
[1641469950438,1.4974948,3343.9,3343.7,1.40973728]
[1641469950821,0.01162261,3343.8,3343.7,1.40973728]
[1641469951022,1.20911741,3343.8,3343.7,1.40973728]
[1641469951226,1.20911741,3343.8,3343.7,4.61087413]
[1641469951428,1.20911741,3343.8,3343.7,1.41087413]
[1641469952225,1.20911741,3343.8,3343.7,6.36087413]
[1641469952428,0.01162261,3343.8,3343.7,6.36087413]
[1641469952625,0.01162261,3343.8,3343.7,7.36087413]
[1641469954464,0.01162261,3343.8,3343.7,2.41087413]
[1641469954673,0.01162261,3343.8,3343.7,1.41087413]
[1641469955866,0.01162261,3343.8,3343.7,0.00113685]
[1641469956267,0.01162261,3343.8,3343.4,0.00284212]
[1641469956671,0.01162261,3343.8,3343.4,0.75057212]
[1641469956871,1.21292507,3343.8,3343.4,1.75057212]
[1641469957069,1.51292507,3343.8,3343.5,0.00227369]
[1641469957269,1.21292507,3343.8,3343.5,0.00227369]
[1641469957469,1.21292507,3343.8,3343.7,10.0338115]
[1641469957670,0.01162261,3343.8,3343.7,10.0338115]
[1641469957911,0.01162261,3343.8,3343.7,13.74340356]
[1641469958114,0.01162261,3343.8,3343.7,17.77346764]
[1641469958310,0.01162261,3343.8,3343.7,14.57346764]
[1641469960716,2.261e-05,3343.8,3343.7,14.57346764]
[1641469960916,0.00113685,3344.1,3343.8,12.2]
[1641469961116,0.00113685,3344.1,3343.9,1.0]
[1641469961980,0.00113685,3344.1,3344.0,15.7]
[1641469962181,0.00113685,3344.1,3344.0,13.2]
[1641469962377,0.00113685,3344.1,3344.0,13.63]
[1641469962982,0.00113685,3344.1,3344.0,14.92230683]
[1641469963180,1.08454031,3345.2,3344.1,12.2]
[1641469963382,1.08454031,3345.2,3345.1,1.06072273]
[1641469963580,1.08454031,3345.2,3345.1,3.3210775]
[1641469964382,1.08454031,3345.2,3345.1,5.0684375]
[1641469965723,2.26276215,3345.5,3345.1,5.0684375]
[1641469966125,0.0073895,3345.4,3345.3,0.74733]
[1641469966324,0.0073895,3345.4,3345.3,1.49466]
[1641469967729,1.18561134,3345.4,3345.3,1.49466]
[1641469969767,1.18561134,3345.4,3345.3,0.74733]
[1641469971169,1.18561134,3345.4,3345.2,0.7472586]
[1641469971368,1.18561134,3345.4,3345.0,1.49464]
[1641469971568,1.18561134,3345.4,3344.4,1.49487]
[1641469971569,0.00682108,3345.3,3344.4,1.49487]
[1641469971771,0.00682108,3345.3,3344.2,3.0518]
[1641469971969,1.17822184,3345.4,3344.2,3.0518]
[1641469971970,0.00625265,3345.2,3344.2,3.0518]
[1641469972368,0.00568423,3345.1,3344.1,1.1637409]
[1641469972568,1.94910628,3344.9,3344.4,1.72908788]
[1641469973031,0.00397896,3344.8,3344.4,1.72908788]
[1641469973433,0.00341054,3344.7,3344.4,1.72908788]
[1641469973830,0.00284211,3344.6,3344.4,1.72908788]
[1641469974229,0.00227369,3344.5,3344.4,1.72908788]
[1641469974447,0.00227369,3344.5,3344.4,2.47663788]
[1641469974630,0.00227369,3344.5,3344.4,4.22417268]
[1641469974833,0.00227369,3344.5,3344.4,8.32417268]
[1641469976863,0.00227369,3344.5,3344.4,12.02417268]
[1641469977065,0.00227369,3344.5,3344.4,12.45417268]
[1641469977266,1.08454031,3345.3,3344.5,12.2022]
[1641469977566,0.54603477,3345.3,3344.8,1.13902564]
[1641469977767,1.42083291,3345.5,3344.9,0.43]
[1641469978164,0.00511581,3345.4,3344.9,0.43]
[1641469978566,0.00454739,3345.3,3344.9,0.43]
[1641469978765,0.00454739,3345.3,3345.1,1.49434]
[1641469978969,0.6761207,3345.6,3345.2,10.58]
[1641469979367,0.6761207,3345.6,3345.4,8.18926584]
[1641469979368,0.00568423,3345.5,3345.4,8.18926584]
[1641469979566,0.00568423,3345.5,3345.4,2.38926584]
[1641469979967,0.00568423,3345.5,3345.4,1.38926584]
[1641469980429,0.00568423,3345.5,3345.4,2.13643584]
[1641469980728,0.00568423,3345.5,3345.4,3.13643584]
[1641469980930,0.00568423,3345.5,3345.4,5.84910936]
[1641469981139,8.423e-05,3345.5,3345.4,5.84910936]
[1641469981333,0.6761207,3345.6,3345.4,5.84910936]
[1641469981334,2.07e-05,3345.6,3345.5,12.2]
[1641469981529,1.42083291,3346.7,3345.6,12.94695]
[1641469981733,1.42083291,3346.7,3346.1,1.49386]
[1641469982031,0.00625266,3346.6,3346.2,5.04824268]
[1641469982331,1.42083291,3346.7,3346.3,12.2]
[1641469982530,3.291e-05,3346.7,3346.4,3.63102635]
[1641469982729,2.12803476,3346.9,3346.4,3.63102635]
[1641469982931,2.83775551,3347.2,3346.5,1.0]
[1641469983131,0.6761207,3347.6,3347.3,0.74682]
[1641469983431,0.6761207,3347.6,3346.9,1.49365]
[1641469983635,0.00568423,3347.5,3346.3,5.07453685]
[1641469983834,0.00568423,3347.5,3346.3,1.22213685]
[1641469984030,0.6761207,3347.6,3346.3,1.22213685]
[1641469984031,0.00511581,3347.4,3346.3,1.22213685]
[1641469984278,0.00511581,3347.4,3346.3,0.00113685]
[1641469984482,0.00454739,3347.3,3346.3,0.00113685]
[1641469984778,0.3,3346.4,3346.0,0.00284212]
[1641469984978,6.17397896,3347.2,3346.0,0.00284212]
[1641469985279,0.00341054,3347.1,3346.0,0.00284212]
[1641469985481,0.00341054,3347.1,3346.3,1.25455815]
[1641469985679,6.47,3347.2,3346.3,1.25455815]
[1641469985680,0.00284212,3347.0,3346.3,1.25455815]
[1641469986079,0.00227369,3346.9,3346.3,1.25455815]
[1641469986480,0.00170527,3346.8,3346.3,1.25455815]
[1641469986878,0.00113685,3346.7,3346.3,1.25455815]
[1641469987279,0.00341054,3347.1,3346.9,1.04973153]
[1641469987781,0.00284212,3347.0,3346.9,4.84973153]
[1641469988239,0.00284212,3347.0,3346.9,5.84973153]
[1641469988842,0.00590112,3347.0,3346.9,5.84973153]
[1641469990241,6.01658428,3347.2,3347.0,4.8]
[1641469990441,6.01658428,3347.2,3347.1,0.74679]
[1641469990644,6.01658428,3347.2,3347.1,1.74679]
[1641469990843,0.00113684,3347.2,3347.1,1.74679]
[1641469992884,0.00113684,3347.2,3347.1,1.0]
[1641469993686,0.00113684,3347.2,3347.0,2.9871677]
[1641469993886,0.00113684,3347.2,3346.7,1.0]
[1641469994193,0.00113684,3347.2,3346.4,0.04991661]
[1641469994194,0.00113684,3347.2,3346.8,0.00113685]
[1641469994586,0.00113684,3347.2,3346.5,0.00284212]
[1641469995626,0.00113684,3347.2,3346.4,0.00341054]
[1641469997027,0.43,3347.1,3346.4,0.00341054]
[1641469997226,0.43,3347.1,3346.1,0.00511581]
[1641469997227,3.79100943,3347.1,3346.1,0.00511581]
[1641469997426,0.3,3347.0,3345.6,0.00795793]
[1641469997626,0.3,3347.0,3345.3,5.727]
[1641469997627,3.27601312,3346.9,3345.5,0.00852636]
[1641469997827,2.21237659,3346.2,3345.7,2.1571518]
[1641469998026,3.27601312,3346.9,3345.7,2.1571518]
[1641469998227,0.8,3347.0,3345.8,0.00682108]
[1641469998427,18.25,3347.0,3345.8,0.00682108]
[1641469998625,17.95,3347.0,3345.8,0.00682108]
[1641469998826,19.04284639,3347.0,3345.8,0.00682108]
[1641469999030,2.00053447,3346.4,3345.8,0.00682108]
[1641469999479,2.30053447,3346.4,3345.8,0.00682108]
[1641470000274,0.88423119,3346.3,3345.8,0.00682108]
[1641470000571,0.88423119,3346.3,3345.6,0.00795793]
[1641470000973,1.49733119,3346.3,3345.6,0.00795793]
[1641470001174,1.49733119,3346.3,3345.2,0.01023163]
[1641470002175,0.43,3346.2,3345.2,0.01023163]
[1641470002677,0.07118739,3346.1,3345.2,0.01023163]
[1641470002919,1.21169874,3346.0,3345.2,0.01023163]
[1641470003123,7.17706184,3345.3,3345.2,0.01023163]
[1641470003326,2.07706184,3345.3,3345.2,0.01023163]
[1641470003521,5.27706184,3345.3,3345.2,0.01023163]
[1641470004121,2.37706184,3345.3,3345.2,0.01023163]
[1641470005222,3.24804311,3345.3,3345.2,0.01023163]
[1641470007076,2.94804311,3345.3,3345.2,0.01023163]
[1641470007282,0.87098127,3345.3,3345.2,0.01023163]
[1641470008378,2.13972728,3345.6,3345.2,0.01023163]
[1641470008981,2.43972728,3345.6,3345.2,0.01023163]
[1641470009383,0.87098127,3345.5,3345.2,0.01023163]
[1641470012029,4.76894639,3346.1,3345.2,0.01023163]
[1641470012230,2.22734639,3346.4,3345.2,0.01023163]
[1641470012431,1.09284639,3346.4,3345.2,0.01023163]
[1641470012928,1.9259609,3345.7,3345.2,0.01023163]
[1641470013328,2.2259609,3345.7,3345.2,0.01023163]
[1641470015174,0.3,3345.7,3345.2,0.01023163]
[1641470015571,1.09284639,3346.4,3345.2,0.01023163]
[1641470015772,1.09284639,3346.3,3345.2,0.01023163]
[1641470016171,1.39284639,3346.3,3345.2,0.01023163]
[1641470016371,1.96113437,3346.0,3345.2,0.01023163]
[1641470016573,2.26113437,3346.0,3345.2,0.01023163]
[1641470016977,0.87486242,3345.9,3345.2,0.01023163]
[1641470017920,1.69695338,3346.0,3345.2,0.01023163]
[1641470018926,0.87486242,3345.8,3345.2,0.01023163]
[1641470019230,1.17486242,3345.8,3345.2,0.01023163]
[1641470019827,0.87486242,3345.7,3345.2,0.01023163]
[1641470020229,0.3,3345.8,3345.2,0.01023163]
[1641470020629,1.69695338,3346.0,3345.2,0.01023163]
[1641470020630,1.99695338,3346.0,3345.2,0.01023163]
[1641470021227,0.87577696,3345.7,3345.2,0.01023163]
[1641470021671,2.26062487,3345.3,3345.2,0.01023163]
[1641470022374,2.56062487,3345.3,3345.2,0.01023163]
[1641470023173,0.3,3345.3,3345.2,0.01023163]
[1641470023375,1.4626,3346.4,3345.2,0.01023163]
[1641470023574,0.3,3346.4,3345.2,0.01023163]
[1641470023774,1.75655557,3346.5,3345.2,0.01023163]
[1641470023973,1.75655557,3346.5,3345.2,1.01023163]
[1641470024174,0.74738,3346.3,3345.2,0.75758653]
[1641470024376,1.85446378,3345.8,3345.3,0.0096632]
[1641470024574,2.15446378,3345.8,3345.3,0.0096632]
[1641470024773,1.85446378,3345.8,3345.3,0.0096632]
[1641470025174,0.8766253,3345.7,3345.3,0.0096632]
[1641470025839,2.15446378,3345.8,3345.3,0.0096632]
[1641470026340,2.15446378,3345.8,3345.2,0.01023163]
[1641470026740,0.84544632,3345.6,3345.2,0.01023163]
[1641470026940,0.74765,3345.4,3345.2,0.01023163]
[1641470027142,1.04765,3345.4,3345.2,0.01023163]
[1641470027340,2.54302,3345.4,3345.2,0.01023163]
[1641470027740,4.8,3345.2,3344.4,0.183689]
[1641470027946,0.43,3345.1,3344.4,0.183689]
[1641470028140,0.43,3345.1,3344.5,0.00397896]
[1641470028141,0.74782,3344.7,3344.5,0.00397896]
[1641470028341,7.89565,3344.6,3344.5,0.00397896]
[1641470028549,1.49565,3344.6,3344.5,0.00397896]
[1641470028743,3.19315768,3344.6,3344.5,0.00397896]
[1641470029195,0.3,3344.7,3344.5,0.00397896]
[1641470029394,0.84544632,3344.6,3344.5,0.00397896]
[1641470030493,2.2455803,3344.9,3344.5,0.00397896]
[1641470031687,0.74761,3345.3,3344.5,0.00397896]
[1641470031888,1.04761,3345.3,3344.5,0.00397896]
[1641470032787,0.84286458,3345.2,3344.5,0.00397896]
[1641470033223,0.84286458,3345.2,3344.7,1.15561453]
[1641470033224,2.48589652,3345.2,3344.7,1.15561453]
[1641470033422,0.84286458,3345.2,3344.7,1.15561453]
[1641470033623,0.84286458,3345.2,3344.8,0.00227369]
[1641470034425,0.84286458,3345.2,3344.8,1.49705369]
[1641470034623,0.84286458,3345.2,3345.0,0.7473739]
[1641470034825,0.84286458,3345.2,3345.0,1.4947539]
[1641470035023,4.74304859,3345.8,3345.3,1.73401284]
[1641470035225,0.3,3345.8,3345.3,1.73401284]
[1641470035425,0.00284212,3345.7,3345.3,1.73401284]
[1641470035826,0.0022737,3345.6,3345.3,1.73401284]
[1641470036226,0.00170527,3345.5,3345.3,1.73401284]
[1641470036677,0.00113685,3345.4,3345.3,5.10441106]
[1641470037186,3.9386,3346.6,3346.0,1.33966971]
[1641470037381,1.45655557,3346.8,3346.0,1.33966971]
[1641470037382,1.88655557,3346.8,3346.0,1.33966971]
[1641470037578,0.00511581,3346.3,3346.0,3.4132991]
[1641470037779,0.92422183,3346.3,3346.0,3.4132991]
[1641470037979,0.00454739,3346.2,3346.0,3.4132991]
[1641470038382,0.00397897,3346.1,3346.0,3.4132991]
[1641470038782,0.00454739,3346.1,3346.0,3.4132991]
[1641470039780,0.92365341,3346.1,3346.0,3.4132991]
[1641470040427,0.00454739,3346.1,3346.0,3.4132991]
[1641470041230,0.92365341,3346.1,3346.0,3.4132991]
[1641470041628,0.92365341,3346.1,3346.0,1.33966971]
[1641470042033,0.00454739,3346.1,3346.0,1.33966971]
[1641470042828,0.92365341,3346.1,3346.0,3.01937723]
[1641470043232,0.92365341,3346.1,3346.0,1.33966971]
[1641470044173,0.92365341,3346.1,3346.0,3.11354639]
[1641470046375,0.92365341,3346.1,3346.0,3.86076639]
[1641470046576,0.92365341,3346.1,3346.0,3.11354639]
[1641470047476,0.92365341,3346.1,3346.0,3.86077639]
[1641470047679,0.92365341,3346.1,3346.0,7.50320588]
[1641470047951,0.92365341,3346.1,3346.0,7.64140585]
[1641470048145,5.48948501,3347.3,3346.2,12.15]
[1641470048446,2.83775551,3347.5,3346.2,12.15]
[1641470048447,2.83775551,3347.5,3347.1,1.98968489]
[1641470048640,0.72603985,3347.6,3347.2,1.01274973]
[1641470049337,0.6761207,3347.6,3347.2,1.01274973]
[1641470050039,0.6761207,3347.6,3347.2,1.75967973]
[1641470050239,0.6761207,3347.6,3347.3,2.66033151]
[1641470050438,0.6761207,3347.6,3347.2,2.01274973]
[1641470050739,0.6761207,3347.6,3347.2,1.01274973]
[1641470051980,0.5761207,3347.6,3347.2,1.01274973]
[1641470052686,0.5761207,3347.6,3347.3,2.21393042]
[1641470054881,0.5761207,3347.6,3347.2,1.01274973]
[1641470056533,0.5761207,3347.6,3347.2,2.75965973]
[1641470057029,3.9287,3348.4,3347.4,1.49355]
[1641470057240,3.8065,3348.6,3348.5,1.05342508]
[1641470057430,1.53908501,3348.7,3348.5,1.05342508]
[1641470058228,1.53908501,3348.7,3348.2,0.74676]
[1641470058229,1.53908501,3348.7,3348.4,0.7467319]
[1641470058430,2.55803476,3348.8,3348.2,0.74676]
[1641470058431,0.43,3348.8,3348.2,0.74676]
[1641470058833,0.01421059,3348.7,3348.2,0.74676]
[1641470059036,1.10628921,3348.7,3348.6,2.051791]
[1641470059276,1.09207862,3348.7,3348.6,3.37974853]
[1641470059980,2.55214999,3348.9,3348.6,3.37974853]
[1641470060177,0.3,3348.7,3348.6,3.37974853]
[1641470060380,0.01477901,3348.8,3348.6,3.37974853]
[1641470060780,0.01421059,3348.7,3348.6,3.37974853]
[1641470061385,0.01421059,3348.7,3348.2,0.74676]
[1641470061783,0.01364216,3348.6,3348.2,0.74676]
[1641470062182,0.01307374,3348.5,3348.2,0.74676]
[1641470062381,0.01307374,3348.5,3348.3,1.82994496]
[1641470062582,0.01250532,3348.4,3348.3,1.82994496]
[1641470062781,0.01250532,3348.4,3348.3,3.05622626]
[1641470063026,0.01364216,3348.4,3348.3,3.05622626]
[1641470066231,0.01364216,3348.4,3348.3,4.05622626]
[1641470066435,0.00253176,3348.7,3348.4,0.74656]
[1641470066679,0.00253176,3348.7,3348.4,2.72236]
[1641470067282,0.00253176,3348.7,3348.4,1.72236]
[1641470067581,0.00253176,3348.7,3348.4,2.72236]
[1641470068585,6.17,3349.3,3348.4,2.72236]
[1641470068985,0.00341054,3349.2,3348.4,2.72236]
[1641470069383,0.00284212,3349.1,3348.4,2.72236]
[1641470069783,0.0022737,3349.0,3348.4,2.72236]
[1641470070092,0.00170527,3348.9,3348.4,1.72236]
[1641470070457,0.00113685,3348.8,3348.3,4.55112363]
[1641470070639,0.00113685,3348.8,3348.3,3.80449363]
[1641470070840,0.00454739,3349.4,3348.4,0.00113684]
[1641470071239,0.00397897,3349.3,3348.4,0.00113684]
[1641470071441,0.00397897,3349.3,3349.1,1.93096341]
[1641470072741,0.00397897,3349.3,3348.9,0.74656]
[1641470073140,0.00397897,3349.3,3348.9,1.74656]
[1641470073439,0.00397897,3349.3,3348.9,0.74656]
[1641470073640,0.00397897,3349.3,3349.0,0.7465441]
[1641470073842,0.00397897,3349.3,3349.0,1.4930641]
[1641470074046,0.00397897,3349.3,3349.1,0.74644]
[1641470074703,0.00397897,3349.3,3349.0,0.74652]
[1641470074896,0.00397897,3349.3,3348.9,1.74656]
[1641470075697,0.00397897,3349.3,3348.9,3.23936]
[1641470076598,0.00397897,3349.3,3349.0,0.7465379]
[1641470077800,0.00397897,3349.3,3348.9,0.74656]
[1641470078055,0.69227897,3349.3,3348.4,0.00113684]
[1641470078252,0.43,3349.2,3348.4,0.00113684]
[1641470078449,0.43,3349.2,3348.1,0.74677]
[1641470078650,0.00284212,3349.1,3348.2,0.00227369]
[1641470078853,0.43,3349.0,3348.3,1.65860474]
[1641470079055,0.0022737,3349.0,3348.8,1.41272888]
[1641470079250,0.00170527,3348.9,3348.8,1.41272888]
[1641470080653,0.00170527,3348.9,3348.8,5.11272888]
[1641470080953,0.00170527,3348.9,3348.8,1.41272888]
[1641470081153,0.00170527,3348.9,3348.8,2.41272888]
[1641470081357,0.00170527,3348.9,3348.8,1.41272888]
[1641470081552,0.00170527,3348.9,3348.8,2.41272888]
[1641470081786,0.00170527,3348.9,3348.8,1.41272888]
[1641470081989,0.00170527,3348.9,3348.8,2.41272888]
[1641470082786,0.00170527,3348.9,3348.8,1.41272888]
[1641470084289,0.00170527,3348.9,3348.8,2.41272888]
[1641470084988,0.00170527,3348.9,3348.8,3.15922888]
[1641470087944,0.00170527,3348.9,3348.8,2.41272888]
[1641470088744,0.00170527,3348.9,3348.4,0.00113684]
[1641470089183,0.00170527,3348.9,3348.1,1.49326]
[1641470089184,0.00113685,3348.8,3348.2,0.00227369]
[1641470089585,0.59427952,3349.0,3348.7,1.35687755]
[1641470089986,0.00170527,3348.9,3348.7,1.35687755]
[1641470090394,0.00113685,3348.8,3348.7,1.35687755]
[1641470092088,0.97377796,3349.6,3348.7,1.35687755]
[1641470092291,0.67377796,3349.6,3348.7,1.35687755]
[1641470092490,0.57080018,3349.4,3348.7,2.10340755]
[1641470092933,0.00284212,3349.3,3348.7,2.10340755]
[1641470093333,0.00227369,3349.2,3349.1,2.18889257]
[1641470093543,0.00122966,3349.2,3349.1,2.18889257]
[1641470095436,1.09207862,3349.8,3349.1,2.18889257]
[1641470095634,1.4927,3351.2,3349.1,2.18889257]
[1641470095833,1.4927,3351.2,3349.1,4.88699049]
[1641470096035,1.4927,3351.2,3349.9,0.15582509]
[1641470096437,1.32023235,3350.5,3349.9,0.15582509]
[1641470097115,1.32023235,3350.5,3350.0,0.01292257]
[1641470097316,1.32023235,3350.5,3350.0,0.08340142]
[1641470097518,1.47411703,3351.4,3350.0,0.08340142]
[1641470097719,1.47411703,3351.4,3350.3,2.23777]
[1641470097917,0.60409179,3351.4,3350.6,1.49188]
[1641470098215,0.16606439,3351.4,3350.7,1.60125871]
[1641470098615,0.01250532,3351.4,3350.7,3.34721871]
[1641470099016,0.01250532,3351.4,3351.0,0.74594]
[1641470099218,0.01250532,3351.4,3351.3,11.71389367]
[1641470099616,0.01250532,3351.4,3351.3,2.36389367]
[1641470100022,0.01250532,3351.4,3351.3,1.36389367]
[1641470100232,0.01250532,3351.4,3351.3,2.36389367]
[1641470100439,0.01250532,3351.4,3351.3,1.36389367]
[1641470100643,0.01250532,3351.4,3351.3,2.36389367]
[1641470100842,0.01250532,3351.4,3350.4,0.43]
[1641470101041,0.01250532,3351.4,3350.0,4.23172257]
[1641470101252,0.497,3351.7,3350.0,0.43]
[1641470101253,0.0119369,3351.3,3350.0,0.43]
[1641470101440,0.0119369,3351.3,3350.1,2.77184208]
[1641470101643,0.01136847,3351.2,3350.1,3.51808208]
[1641470101840,0.01136847,3351.2,3350.1,0.74624]
[1641470102042,0.01080005,3351.1,3350.7,1.17425624]
[1641470102341,0.01023163,3351.0,3350.7,1.17425624]
[1641470102744,0.0096632,3350.9,3350.7,1.17425624]
[1641470103145,0.00909478,3350.8,3350.7,2.81534828]
[1641470103743,0.00909478,3350.8,3350.7,3.81534828]
[1641470104198,0.00909478,3350.8,3350.7,2.81534828]
[1641470104600,0.00909478,3350.8,3350.7,3.81534828]
[1641470105001,0.00909478,3350.8,3350.7,2.81534828]
[1641470105407,0.00909478,3350.8,3350.7,11.71821844]
[1641470105803,0.00909478,3350.8,3350.7,3.81534828]
[1641470107503,0.00909478,3350.8,3350.7,6.50636292]
[1641470107938,0.00909478,3350.8,3350.7,3.81534828]
[1641470108739,0.00909478,3350.8,3350.7,4.56135828]
[1641470110859,1.66437838,3350.7,3350.6,1.49205]
[1641470111050,1.66437838,3350.7,3349.9,3.80016032]
[1641470111051,1.96437838,3350.7,3349.9,3.80016032]
[1641470111243,1.97290473,3350.7,3350.0,0.75570593]
[1641470111445,8.35,3350.5,3349.7,1.12687651]
[1641470111692,0.43,3350.4,3349.7,1.12687651]
[1641470111892,2.0359052,3350.0,3349.5,2.18522905]
[1641470112093,2.3359052,3350.0,3349.5,2.18522905]
[1641470112291,0.00397897,3349.9,3349.5,2.18522905]
[1641470112692,0.00341054,3349.8,3349.5,2.18522905]
[1641470112894,0.00341054,3349.8,3349.5,2.93161165]
[1641470113191,0.00284212,3349.7,3349.5,2.93161165]
[1641470113391,0.00284212,3349.7,3349.5,1.80473514]
[1641470113593,0.0022737,3349.6,3349.5,1.80473514]
[1641470113891,0.0022737,3349.6,3349.5,2.55112514]
[1641470114092,0.0022737,3349.6,3349.5,2.80473514]
[1641470114295,0.0022737,3349.6,3349.5,7.05473514]
[1641470115464,0.0022737,3349.6,3349.5,1.80473514]
[1641470115666,0.0022737,3349.6,3349.5,1.05835254]
[1641470115959,0.0022737,3349.6,3349.5,3.59218733]
[1641470116560,0.0022737,3349.6,3349.5,5.58859237]
[1641470117059,0.0022737,3349.6,3349.5,6.58859237]
[1641470118262,0.0022737,3349.6,3349.5,10.73859237]
[1641470118460,0.0022737,3349.6,3349.5,6.58859237]
[1641470118862,1.66437838,3350.7,3350.3,1.3362402]
[1641470119289,0.00454738,3350.4,3350.3,1.3362402]
[1641470122198,0.00454738,3350.4,3350.3,2.082497]
[1641470123060,1.66437838,3350.7,3350.4,12.15]
[1641470123061,0.32857838,3350.7,3350.4,12.15]
[1641470123268,2.76336744,3352.4,3350.9,0.24992161]
[1641470123460,7.2854,3352.5,3351.6,1.00888]
[1641470123657,0.86385783,3352.7,3351.6,1.00888]
[1641470123858,0.01136847,3352.4,3351.6,1.00888]
[1641470124258,0.01080005,3352.3,3351.9,1.05255324]
[1641470124658,0.01023163,3352.2,3351.9,1.79842314]
[1641470124860,1.61302068,3352.4,3351.9,1.79842314]
[1641470125058,1.61302068,3352.4,3351.9,2.79842314]
[1641470125259,1.61302068,3352.4,3352.0,0.00113685]
[1641470125763,1.91302068,3352.4,3352.0,0.00113685]
[1641470129094,1.61302068,3352.4,3352.0,0.00113685]
[1641470129292,4.1385,3353.0,3352.0,0.00113685]
[1641470129293,3.7085,3353.0,3352.0,0.00113685]
[1641470129493,4.04206302,3353.3,3352.0,2.6528409]
[1641470129692,0.00397896,3352.9,3352.0,2.6528409]
[1641470129893,0.00397896,3352.9,3352.1,1.0]
[1641470130091,0.00397896,3352.9,3352.0,0.00113685]
[1641470130092,0.00341054,3352.8,3352.0,0.00113685]
[1641470130294,1.66911526,3352.5,3352.2,0.7458]
[1641470130547,0.00204349,3352.4,3352.2,0.7458]
[1641470130742,0.00318033,3352.4,3352.2,0.7458]
[1641470130946,0.00204349,3352.4,3352.2,0.7458]
[1641470131142,0.00204349,3352.4,3352.3,2.6309171]
[1641470131343,0.00204349,3352.4,3352.2,0.7458]
[1641470131543,0.00318033,3352.4,3352.2,0.7458]
[1641470131942,0.00318033,3352.4,3352.3,2.64174829]
[1641470132143,0.00318033,3352.4,3352.3,5.3]
[1641470132343,0.00318033,3352.4,3352.3,1.0]
[1641470132643,0.00318033,3352.4,3352.3,8.69228324]
[1641470132942,0.00318033,3352.4,3352.2,2.49156]
[1641470133342,0.00318033,3352.4,3352.3,11.67676124]
[1641470133546,0.00318033,3352.4,3352.3,12.74493546]
[1641470135395,0.00113684,3352.4,3352.3,12.74493546]
[1641470136196,0.6761207,3353.6,3352.4,12.15]
[1641470136392,0.6761207,3353.6,3353.5,1.3460954]
[1641470136393,0.66817316,3353.6,3353.5,1.3460954]
[1641470138146,0.66817316,3353.6,3353.5,2.3460954]
[1641470138341,0.66817316,3353.6,3353.5,1.3460954]
[1641470138545,0.66817316,3353.6,3353.5,2.3460954]
[1641470141143,0.66817316,3353.6,3353.4,2.2364565]
[1641470141353,0.66817316,3353.6,3352.5,3.70333879]
[1641470141545,0.00625266,3353.5,3352.5,5.19463879]
[1641470141811,0.00625266,3353.5,3352.8,0.7965335]
[1641470142113,2.26045943,3353.0,3352.9,1.19027632]
[1641470142312,0.00568424,3353.4,3352.8,0.0508435]
[1641470142513,0.00341054,3353.0,3352.8,4.35e-05]
[1641470142713,0.00511581,3353.3,3352.8,4.35e-05]
[1641470142912,1.09817316,3353.6,3352.8,4.35e-05]
[1641470142913,0.00284212,3352.9,3352.8,4.35e-05]
[1641470143114,0.00454739,3353.2,3352.8,4.35e-05]
[1641470143314,0.00284212,3352.9,3352.7,1.38298723]
[1641470143514,0.00397897,3353.1,3352.7,1.38298723]
[1641470143713,0.0022737,3352.8,3352.7,1.38298723]
[1641470143918,0.00341054,3353.0,3352.7,1.38298723]
[1641470144115,0.0022737,3352.8,3352.7,1.38298723]
[1641470144315,0.00284212,3352.9,3352.7,1.38298723]
[1641470144514,0.0022737,3352.8,3352.7,1.38298723]
[1641470144913,0.0022737,3352.8,3352.7,8.48298723]
[1641470145121,1.92803378,3353.5,3353.0,1.94978301]
[1641470145459,0.00341054,3353.4,3353.0,0.74561]
[1641470145856,0.66817316,3353.6,3353.3,1.10584588]
[1641470146056,0.66817316,3353.6,3353.4,0.74554]
[1641470147359,0.66817316,3353.6,3353.4,1.74554]